[Event "Titled Tuesday Blitz May 2 Late 2023"]
[White "Martic, Ivan"]
[Black "Broca Jimenez, Fernando"]
[WhiteFideId "929301"]
[BlackFideId "5104742"]
[WhiteElo "2360"]
[BlackElo "2062"]
[Result "1-0"]
[Round "11"]
[TimeControl "180+2"]
[Date "2023.05.02"]
[WhiteClock "0:01:40"]
[BlackClock "0:00:14"]

1. e4 {[%clk 0:02:57]}  c5 {[%clk 0:02:59]} 2. Nf3 {[%clk 0:02:56]}  g6 {[%clk 0:02:58]} 3. g3 {[%clk 0:02:51]}  Nc6 {[%clk 0:02:58]} 4. Bg2 {[%clk 0:02:51]}  Nf6 {[%clk 0:02:58]} 5. d3 {[%clk 0:02:49]}  Bg7 {[%clk 0:02:57]} 6. O-O {[%clk 0:02:49]}  O-O {[%clk 0:02:57]} 7. c3 {[%clk 0:02:49]}  d5 {[%clk 0:02:56]} 8. Nbd2 {[%clk 0:02:48]}  dxe4 {[%clk 0:02:53]} 9. dxe4 {[%clk 0:02:49]}  Bg4 {[%clk 0:02:52]} 10. Qc2 {[%clk 0:02:43]}  h6 {[%clk 0:02:50]} 11. h3 {[%clk 0:02:43]}  Be6 {[%clk 0:02:51]} 12. Rd1 {[%clk 0:02:34]}  Qc7 {[%clk 0:02:39]} 13. Bf1 {[%clk 0:02:29]}  Rad8 {[%clk 0:02:35]} 14. Kh2 {[%clk 0:02:27]}  a6 {[%clk 0:02:29]} 15. a4 {[%clk 0:02:26]}  Na5 {[%clk 0:02:17]} 16. Re1 {[%clk 0:02:21]}  Qb6 {[%clk 0:02:07]} 17. b4 {[%clk 0:02:16]}  cxb4 {[%clk 0:01:36]} 18. cxb4 {[%clk 0:02:16]}  Nc6 {[%clk 0:01:34]} 19. Nc4 {[%clk 0:02:10]}  Bxc4 {[%clk 0:01:29]} 20. Bxc4 {[%clk 0:02:11]}  Nxb4 {[%clk 0:01:29]} 21. Qe2 {[%clk 0:02:08]}  Ng4+ {[%clk 0:01:06]} 22. hxg4 {[%clk 0:02:05]}  Bxa1 {[%clk 0:01:06]} 23. Be3 {[%clk 0:02:04]}  Qf6 {[%clk 0:00:58]} 24. Bxh6 {[%clk 0:02:02]}  Bc3 {[%clk 0:00:21]} 25. Rc1 {[%clk 0:01:52]}  Qh8 {[%clk 0:00:17]} 26. g5 {[%clk 0:01:50]}  Bg7 {[%clk 0:00:17]} 27. Kg2 {[%clk 0:01:49]}  Bxh6 {[%clk 0:00:18]} 28. Rh1 {[%clk 0:01:49]}  Nc6 {[%clk 0:00:16]} 29. Rxh6 {[%clk 0:01:44]}  Nd4 {[%clk 0:00:15]} 30. Rxh8+ {[%clk 0:01:42]}  Kxh8 {[%clk 0:00:15]} 31. Qb2 {[%clk 0:01:41]}  e5 {[%clk 0:00:14]} 32. Nxe5 {[%clk 0:01:41]}  Kg8 {[%clk 0:00:14]} 33. Ng4 {[%clk 0:01:40]} 1-0


[Site "https://www.chess.com"]

[Event "Titled Tuesday Blitz May 2 Late 2023"]
[White "Golubev, Mikhail"]
[Black "Joubert, Dantelle"]
[WhiteFideId "14100983"]
[BlackFideId "14310813"]
[WhiteElo "2374"]
[BlackElo "1507"]
[Result "1-0"]
[Round "11"]
[TimeControl "180+2"]
[Date "2023.05.02"]
[WhiteClock "0:00:25"]
[BlackClock "0:00:03"]

1. Na3 {[%clk 0:03:00]}  d5 {[%clk 0:01:46]} 2. c3 {[%clk 0:02:58]}  e6 {[%clk 0:01:44]} 3. Nc2 {[%clk 0:02:58]}  Nf6 {[%clk 0:01:43]} 4. Nf3 {[%clk 0:02:58]}  Be7 {[%clk 0:01:43]} 5. d4 {[%clk 0:02:56]}  O-O {[%clk 0:01:38]} 6. g3 {[%clk 0:02:56]}  c5 {[%clk 0:01:37]} 7. dxc5 {[%clk 0:02:55]}  Bxc5 {[%clk 0:01:37]} 8. Bg2 {[%clk 0:02:55]}  Ne4 {[%clk 0:01:36]} 9. O-O {[%clk 0:02:55]}  Nc6 {[%clk 0:01:34]} 10. Be3 {[%clk 0:02:55]}  Bd6 {[%clk 0:01:27]} 11. c4 {[%clk 0:02:43]}  dxc4 {[%clk 0:01:21]} 12. Nfd4 {[%clk 0:02:43]}  Nxd4 {[%clk 0:01:16]} 13. Nxd4 {[%clk 0:02:42]}  Nf6 {[%clk 0:01:10]} 14. Nb5 {[%clk 0:02:24]}  Be5 {[%clk 0:01:09]} 15. Qc2 {[%clk 0:02:12]}  Qa5 {[%clk 0:01:04]} 16. Na3 {[%clk 0:02:00]}  c3 {[%clk 0:00:56]} 17. Nc4 {[%clk 0:01:55]}  Qc7 {[%clk 0:00:55]} 18. Nxe5 {[%clk 0:01:51]}  Qxe5 {[%clk 0:00:55]} 19. bxc3 {[%clk 0:01:46]}  Bd7 {[%clk 0:00:53]} 20. Bxb7 {[%clk 0:01:38]}  Rab8 {[%clk 0:00:50]} 21. Bf4 {[%clk 0:01:31]}  Qb5 {[%clk 0:00:40]} 22. Rab1 {[%clk 0:01:25]}  Qh5 {[%clk 0:00:34]} 23. Bf3 {[%clk 0:00:48]}  Ng4 {[%clk 0:00:30]} 24. Bxg4 {[%clk 0:00:46]}  Qxg4 {[%clk 0:00:29]} 25. Rxb8 {[%clk 0:00:45]}  Rxb8 {[%clk 0:00:23]} 26. Bxb8 {[%clk 0:00:45]}  Bc6 {[%clk 0:00:19]} 27. f3 {[%clk 0:00:45]}  Qc4 {[%clk 0:00:17]} 28. Qd3 {[%clk 0:00:41]}  Qc5+ {[%clk 0:00:14]} 29. Qd4 {[%clk 0:00:41]}  Qb5 {[%clk 0:00:09]} 30. Qd8+ {[%clk 0:00:32]}  Be8 {[%clk 0:00:09]} 31. Bd6 {[%clk 0:00:27]}  h5 {[%clk 0:00:08]} 32. c4 {[%clk 0:00:27]}  Qc6 {[%clk 0:00:05]} 33. c5 {[%clk 0:00:27]}  Kh7 {[%clk 0:00:04]} 34. Qg5 {[%clk 0:00:26]}  g6 {[%clk 0:00:03]} 35. Qf6 {[%clk 0:00:25]} 1-0


[Site "https://www.chess.com"]

[Event "Titled Tuesday Blitz May 2 Late 2023"]
[White "Panico, Nick"]
[Black "Kapp, Martin"]
[WhiteFideId "2026724"]
[BlackFideId "24651680"]
[WhiteElo "1982"]
[BlackElo "2177"]
[Result "1-0"]
[Round "11"]
[TimeControl "180+2"]
[Date "2023.05.02"]
[WhiteClock "0:02:01"]
[BlackClock "0:00:54"]

1. f4 {[%clk 0:03:00]}  d5 {[%clk 0:02:57]} 2. Nf3 {[%clk 0:03:00]}  Nf6 {[%clk 0:02:56]} 3. e3 {[%clk 0:03:00]}  c5 {[%clk 0:02:55]} 4. Be2 {[%clk 0:02:59]}  e6 {[%clk 0:02:55]} 5. O-O {[%clk 0:02:59]}  Be7 {[%clk 0:02:55]} 6. b3 {[%clk 0:02:59]}  O-O {[%clk 0:02:55]} 7. Bb2 {[%clk 0:03:00]}  Nc6 {[%clk 0:02:53]} 8. Ne5 {[%clk 0:02:40]}  Nd7 {[%clk 0:02:44]} 9. Nxc6 {[%clk 0:02:40]}  bxc6 {[%clk 0:02:45]} 10. d3 {[%clk 0:02:39]}  Bf6 {[%clk 0:02:43]} 11. Qc1 {[%clk 0:02:37]}  Rb8 {[%clk 0:02:39]} 12. Nc3 {[%clk 0:02:37]}  c4 {[%clk 0:02:30]} 13. e4 {[%clk 0:02:34]}  Bd4+ {[%clk 0:02:19]} 14. Kh1 {[%clk 0:02:33]}  Qa5 {[%clk 0:02:17]} 15. Na4 {[%clk 0:02:27]}  c3 {[%clk 0:02:14]} 16. Ba3 {[%clk 0:02:24]}  c5 {[%clk 0:02:06]} 17. exd5 {[%clk 0:02:13]}  exd5 {[%clk 0:01:41]} 18. Bf3 {[%clk 0:02:13]}  Nf6 {[%clk 0:01:30]} 19. Rb1 {[%clk 0:02:03]}  Re8 {[%clk 0:01:03]} 20. h3 {[%clk 0:02:02]}  Bd7 {[%clk 0:00:54]} 21. g4 {[%clk 0:02:01]} 1-0


[Site "https://www.chess.com"]

[Event "Titled Tuesday Blitz May 2 Late 2023"]
[White "Vifleemskaia, Svetlana"]
[Black "Roman, Rodrigo"]
[WhiteFideId "4129490"]
[BlackFideId "3701220"]
[WhiteElo "1930"]
[BlackElo "1995"]
[Result "0-1"]
[Round "11"]
[TimeControl "180+2"]
[Date "2023.05.02"]
[WhiteClock "0:00:01"]
[BlackClock "0:00:33"]

1. d4 {[%clk 0:03:00]}  f6 {[%clk 0:02:46]} 2. e4 {[%clk 0:02:59]}  Kf7 {[%clk 0:02:46]} 3. c4 {[%clk 0:02:59]}  e6 {[%clk 0:02:47]} 4. Nc3 {[%clk 0:02:59]}  d6 {[%clk 0:02:48]} 5. f4 {[%clk 0:02:59]}  Ne7 {[%clk 0:02:48]} 6. Nf3 {[%clk 0:02:59]}  d5 {[%clk 0:02:49]} 7. cxd5 {[%clk 0:02:58]}  exd5 {[%clk 0:02:50]} 8. e5 {[%clk 0:02:57]}  h5 {[%clk 0:02:50]} 9. Bd3 {[%clk 0:02:53]}  Bf5 {[%clk 0:02:50]} 10. O-O {[%clk 0:02:53]}  c6 {[%clk 0:02:50]} 11. Re1 {[%clk 0:02:51]}  Na6 {[%clk 0:02:49]} 12. Bxf5 {[%clk 0:02:49]}  Nxf5 {[%clk 0:02:49]} 13. Qd3 {[%clk 0:02:50]}  Ne7 {[%clk 0:02:43]} 14. e6+ {[%clk 0:02:49]}  Kg8 {[%clk 0:02:43]} 15. f5 {[%clk 0:02:48]}  Nb4 {[%clk 0:02:38]} 16. Qb1 {[%clk 0:02:46]}  c5 {[%clk 0:02:30]} 17. Be3 {[%clk 0:02:42]}  Nbc6 {[%clk 0:02:29]} 18. a3 {[%clk 0:02:33]}  h4 {[%clk 0:02:20]} 19. Qd3 {[%clk 0:02:29]}  c4 {[%clk 0:02:17]} 20. Qc2 {[%clk 0:02:28]}  Rh5 {[%clk 0:02:17]} 21. Qf2 {[%clk 0:02:11]}  Nxf5 {[%clk 0:02:17]} 22. g4 {[%clk 0:02:07]}  hxg3 {[%clk 0:02:15]} 23. hxg3 {[%clk 0:02:08]}  Bd6 {[%clk 0:02:03]} 24. g4 {[%clk 0:02:02]}  Bg3 {[%clk 0:02:03]} 25. Qe2 {[%clk 0:01:58]}  Bxe1 {[%clk 0:02:01]} 26. gxh5 {[%clk 0:01:58]}  Bxc3 {[%clk 0:01:52]} 27. bxc3 {[%clk 0:01:57]}  Qd6 {[%clk 0:01:52]} 28. Bf2 {[%clk 0:01:52]}  Re8 {[%clk 0:01:51]} 29. Re1 {[%clk 0:01:52]}  Nd8 {[%clk 0:01:51]} 30. Qc2 {[%clk 0:01:37]}  Nh6 {[%clk 0:01:51]} 31. Qg6 {[%clk 0:01:32]}  Rxe6 {[%clk 0:01:51]} 32. Bg3 {[%clk 0:01:16]}  Qd7 {[%clk 0:01:27]} 33. Bf4 {[%clk 0:01:10]}  Rxe1+ {[%clk 0:01:24]} 34. Nxe1 {[%clk 0:01:09]}  Qg4+ {[%clk 0:01:25]} 35. Qxg4 {[%clk 0:01:09]}  Nxg4 {[%clk 0:01:26]} 36. Kg2 {[%clk 0:01:02]}  Ne6 {[%clk 0:01:19]} 37. Bd2 {[%clk 0:01:02]}  Nh6 {[%clk 0:01:19]} 38. Nc2 {[%clk 0:00:59]}  Nf5 {[%clk 0:01:18]} 39. Kf3 {[%clk 0:00:50]}  Nd6 {[%clk 0:01:16]} 40. Nb4 {[%clk 0:00:47]}  Nc7 {[%clk 0:00:44]} 41. a4 {[%clk 0:00:44]}  a5 {[%clk 0:00:43]} 42. Nc2 {[%clk 0:00:43]}  Ne4 {[%clk 0:00:43]} 43. Be1 {[%clk 0:00:41]}  b5 {[%clk 0:00:41]} 44. axb5 {[%clk 0:00:29]}  Nxb5 {[%clk 0:00:42]} 45. Ne3 {[%clk 0:00:29]}  Nbxc3 {[%clk 0:00:42]} 46. Bxc3 {[%clk 0:00:18]}  Nxc3 {[%clk 0:00:42]} 47. Kf2 {[%clk 0:00:15]}  a4 {[%clk 0:00:33]} 48. Ke1 {[%clk 0:00:14]}  a3 {[%clk 0:00:33]} 49. Kd2 {[%clk 0:00:12]}  a2 {[%clk 0:00:33]} 50. Nc2 {[%clk 0:00:12]}  Nb5 {[%clk 0:00:33]} 51. Ke3 {[%clk 0:00:06]}  Kf7 {[%clk 0:00:33]} 52. Na1 {[%clk 0:00:06]}  Ke6 {[%clk 0:00:32]} 53. Nc2 {[%clk 0:00:06]}  Kf5 {[%clk 0:00:32]} 54. Na1 {[%clk 0:00:01]}  Kg5 {[%clk 0:00:33]} 0-1


[Site "https://www.chess.com"]

[Event "Titled Tuesday Blitz May 2 Late 2023"]
[White "Vargas, Mauricio"]
[Black "Smith, Shreyas"]
[WhiteFideId "4404572"]
[BlackFideId "7400713"]
[WhiteElo "1998"]
[BlackElo "2151"]
[Result "0-1"]
[Round "11"]
[TimeControl "180+2"]
[Date "2023.05.02"]
[WhiteClock "0:00:14"]
[BlackClock "0:01:23"]

1. e4 {[%clk 0:03:00]}  c5 {[%clk 0:02:59]} 2. Nc3 {[%clk 0:03:00]}  a6 {[%clk 0:02:58]} 3. f4 {[%clk 0:03:01]}  b5 {[%clk 0:02:58]} 4. Nf3 {[%clk 0:03:02]}  Bb7 {[%clk 0:02:59]} 5. d3 {[%clk 0:03:01]}  e6 {[%clk 0:02:58]} 6. g4 {[%clk 0:03:01]}  d5 {[%clk 0:02:58]} 7. e5 {[%clk 0:03:01]}  b4 {[%clk 0:02:57]} 8. Ne2 {[%clk 0:03:00]}  h5 {[%clk 0:02:57]} 9. g5 {[%clk 0:03:00]}  g6 {[%clk 0:02:57]} 10. h4 {[%clk 0:02:57]}  Ne7 {[%clk 0:02:56]} 11. Bg2 {[%clk 0:02:57]}  Nf5 {[%clk 0:02:56]} 12. O-O {[%clk 0:02:53]}  a5 {[%clk 0:02:56]} 13. Kh2 {[%clk 0:02:52]}  a4 {[%clk 0:02:56]} 14. Ng3 {[%clk 0:02:50]}  Nc6 {[%clk 0:02:45]} 15. Nxf5 {[%clk 0:02:50]}  gxf5 {[%clk 0:02:43]} 16. Rg1 {[%clk 0:02:40]}  Be7 {[%clk 0:02:43]} 17. Be3 {[%clk 0:02:28]}  Kd7 {[%clk 0:02:41]} 18. c3 {[%clk 0:02:21]}  a3 {[%clk 0:02:39]} 19. bxa3 {[%clk 0:02:19]}  bxc3 {[%clk 0:02:33]} 20. Qb3 {[%clk 0:02:10]}  Na5 {[%clk 0:02:26]} 21. Qxc3 {[%clk 0:02:04]}  d4 {[%clk 0:02:25]} 22. Nxd4 {[%clk 0:02:01]}  cxd4 {[%clk 0:02:21]} 23. Qxd4+ {[%clk 0:02:01]}  Ke8 {[%clk 0:02:17]} 24. Bxb7 {[%clk 0:01:57]}  Qxd4 {[%clk 0:02:10]} 25. Bxd4 {[%clk 0:01:53]}  Nxb7 {[%clk 0:02:10]} 26. Rab1 {[%clk 0:01:45]}  Nc5 {[%clk 0:02:10]} 27. g6 {[%clk 0:01:29]}  fxg6 {[%clk 0:02:01]} 28. Rxg6 {[%clk 0:01:28]}  Kf7 {[%clk 0:01:55]} 29. Rbg1 {[%clk 0:01:20]}  Rag8 {[%clk 0:01:52]} 30. Rxg8 {[%clk 0:01:12]}  Rxg8 {[%clk 0:01:53]} 31. Rxg8 {[%clk 0:01:06]}  Kxg8 {[%clk 0:01:54]} 32. Kg3 {[%clk 0:01:03]}  Nxd3 {[%clk 0:01:53]} 33. a4 {[%clk 0:01:03]}  Bb4 {[%clk 0:01:52]} 34. Kf3 {[%clk 0:01:02]}  Nc5 {[%clk 0:01:39]} 35. Bxc5 {[%clk 0:00:57]}  Bxc5 {[%clk 0:01:38]} 36. a5 {[%clk 0:00:51]}  Kf7 {[%clk 0:01:38]} 37. Ke2 {[%clk 0:00:44]}  Ke7 {[%clk 0:01:39]} 38. Kd3 {[%clk 0:00:44]}  Kd7 {[%clk 0:01:39]} 39. Kc4 {[%clk 0:00:44]}  Kc6 {[%clk 0:01:39]} 40. a4 {[%clk 0:00:41]}  Bf2 {[%clk 0:01:39]} 41. Kb4 {[%clk 0:00:39]}  Bxh4 {[%clk 0:01:38]} 42. a6 {[%clk 0:00:34]}  Kb6 {[%clk 0:01:37]} 43. a7 {[%clk 0:00:33]}  Kxa7 {[%clk 0:01:35]} 44. Kc5 {[%clk 0:00:34]}  Be7+ {[%clk 0:01:34]} 45. Kc6 {[%clk 0:00:33]}  h4 {[%clk 0:01:34]} 46. Kd7 {[%clk 0:00:32]}  Bc5 {[%clk 0:01:30]} 47. Kxe6 {[%clk 0:00:32]}  h3 {[%clk 0:01:30]} 48. Kxf5 {[%clk 0:00:31]}  h2 {[%clk 0:01:31]} 49. e6 {[%clk 0:00:32]}  h1=Q {[%clk 0:01:31]} 50. Kf6 {[%clk 0:00:32]}  Qe4 {[%clk 0:01:30]} 51. f5 {[%clk 0:00:32]}  Bd6 {[%clk 0:01:27]} 52. Kg6 {[%clk 0:00:24]}  Qe5 {[%clk 0:01:26]} 53. e7 {[%clk 0:00:18]}  Bxe7 {[%clk 0:01:25]} 54. a5 {[%clk 0:00:17]}  Qf6+ {[%clk 0:01:24]} 55. Kh7 {[%clk 0:00:16]}  Bf8 {[%clk 0:01:23]} 56. a6 {[%clk 0:00:14]}  Qg7# {[%clk 0:01:23]} 0-1


[Site "https://www.chess.com"]